Cogmind - Beta 11.1 @@@ ROGUE MODE // 2022.06.06 @ 20:27:53 Player: ktur Result: Destroyed by as-52572 with Assembled Blade Performance ------------- Evolutions (0) 0 Regions Visited (2) 400 Robots Destroyed (21) 105 Value Destroyed (456) 456 Prototype IDs (3) 60 Alien Tech Used (0) 0 Bonus (0) 0 TOTAL SCORE: 1021 Bonus ------- None Cogmind --------- Core Integrity 0/250 Matter 300/300 Energy 100/100 System Corruption 12% Temperature Cool (0) Movement Treading (160) Location -10/Mines Parts ------- > --- POWER (1) -------- (None) > --- PROPULSION (2) --- Light Treads Light Treads > --- UTILITY (2) ------ Large Storage Unit Light Armor Plating > --- WEAPON (2) ------- (None) > --- INVENTORY (15) --- Light Treads High-capacity Matter Pod (200) Light Armor Plating Light Armor Plating Light Armor Plating Light Armor Plating Light Armor Plating Hacking Suite Peak State ------------ > --- POWER ------------ Ion Engine > --- PROPULSION ------- Light Treads Light Treads > --- UTILITY ---------- Improved Heat Sink Large Storage Unit > --- WEAPON ----------- Light Assault Rifle Light Assault Rifle > --- INVENTORY -------- Light Ion Engine Light Treads Light Treads Aluminum Leg Aluminum Leg Wheel Compact Wheel High-capacity Matter Pod Assault Rifle Light Assault Rifle [Rating: 10] Favorites ----------- Power Ion Engine Engine Ion Engine Propulsion Light Treads Treads Light Treads Utility Large Storage Unit Device Improved Heat Sink Storage Large Storage Unit Protection Light Armor Plating Weapon Light Assault Rifle Energy Gun Medium Laser Ballistic Gun Light Assault Rifle Build | -11 -10 -10 ------- Run | Scr Mat Min Slots Evolved . | . . . Power . | . . . Propulsion . | . . . Utility . | . . . Weapon . | . . . Parts Attached 25 | 6 10 9 Power 4 | 1 3 . Engine 4 | 1 3 . Core . | . . . Reactor . | . . . Propulsion 8 | 2 1 5 Treads 8 | 2 1 5 Leg . | . . . Wheel . | . . . Hover . | . . . Flight . | . . . Utility 7 | 1 4 2 Device 1 | . 1 . Storage 2 | 1 1 . Processor . | . . . Hackware . | . . . Protection 4 | . 2 2 Artifact . | . . . Weapon 6 | 2 2 2 Energy Gun 1 | . 1 . Energy Cannon . | . . . Ballistic Gun 5 | 2 1 2 Ballistic Cannon . | . . . Launcher . | . . . Special Weapon . | . . . Impact Weapon . | . . . Slashing Weapon . | . . . Piercing Weapon . | . . . Special Melee Weapon . | . . . Unidentified Prototypes . | . . . Parts Lost 11 | . 2 9 Power 2 | . 1 1 Propulsion 3 | . 1 2 Utility 2 | . . 2 Weapon 4 | . . 4 Highest Loss Streak 7 | . 2 7 To Critical Strikes . | . . . Average Slot Usage (%) 86 | . 96 58 Engine 10 | . 13 1 Treads 27 | . 27 27 Device 4 | . 5 . Storage 14 | . 14 14 Protection 6 | . 5 8 Energy Gun 2 | . 2 1 Ballistic Gun 19 | . 25 4 Naked Turns . | . . . Heaviest Build 31 | 13 31 31 Greatest Support 40 | 40 40 40 Greatest Overweight (x) . | . . . Average Overweight (x) . | . . . Largest Inventory Capacity 15 | 8 15 15 Average Capacity 14 | 7 14 15 Most Carried 15 | 6 15 15 Average Carried 11 | 2 12 10 Final Capacity 15 | 8 15 15 Final Carried 15 | 6 15 8 Class Distribution -------------------- 100% | Mutant Dominant Class ---------------- Mutant | -10/Materials Mutant | -10/Mines Resources | -11 -10 -10 ----------- Run | Scr Mat Min Matter Collected 829 | 248 446 135 Remotely . | . . . Salvage Created 841 | . 706 135 Parts 45 | . 45 . Haulers Intercepted 2 | . 2 . Recyclers Shooed . | . . . Parts Field Recycled . | . . . Retrieved Matter . | . . . Parts Self-Destructed . | . . . Prevented . | . . . Kills | -11 -10 -10 ------- Run | Scr Mat Min Combat Hostiles Destroyed 26 | . 15 11 Melee 4 | . . 4 Guns 21 | . 14 7 AOE 1 | . 1 . Classes Destroyed 8 | . 7 1 Worker 1 | . 1 . Hauler 2 | . 2 . Recycler 1 | . 1 . Operator 1 | . 1 . Watcher 1 | . 1 . Swarmer 5 | . 5 . Grunt 10 | . 10 . Assembled 11 | . . 11 Best Kill Streak 8 | . 4 8 Combat Bots Only 8 | . 3 8 Max Kills in Single Turn 2 | . 2 1 Gunslinging . | . . . Exploded 1 | . 1 . Melee 1 | . . 1 Uniques/NPCs Destroyed . | . . . Combat | -11 -10 -10 -------- Run | Scr Mat Min Damage Taken 2006 | . 799 1207 Core 276 | . 49 227 Absorbed by Shields . | . . . Core Remaining (%) 100 | 100 . . Volleys Fired 99 | . 69 30 Largest 2 | . 2 2 Hottest 70 | . 70 70 Shots Fired 188 | . 138 50 Gun 188 | . 138 50 Cannon . | . . . Launcher . | . . . Special . | . . . Kinetic 167 | . 131 36 Thermal 21 | . 7 14 Explosive . | . . . Electromagnetic . | . . . Robot Hit Streak 13 | . 13 8 Robot Miss Streak 4 | . 4 3 Penetration Max . | . . . Secondary Targets 4 | . 4 . Max Gunslinging Chain 1 | . 1 . Shots Hit Robots 117 | . 88 29 Core Hits 60 | . 41 19 Critical Kills 1 | . 1 . Critical Parts Destroyed 1 | . 1 . Critical Strikes 2 | . 2 . Destroy 2 | . 2 . Melee Attacks . | . . . Impact . | . . . Slashing . | . . . Piercing . | . . . Sneak Attacks . | . . . Combat Hostiles . | . . . Follow-up Attacks . | . . . Damage Inflicted 1460 | . 1096 364 Guns 1126 | . 808 318 Cannons . | . . . Explosions 238 | . 238 . Melee . | . . . Ramming 96 | . 50 46 Kinetic 961 | . 731 230 Thermal 165 | . 77 88 Explosive 238 | . 238 . Electromagnetic . | . . . Impact . | . . . Slashing . | . . . Piercing . | . . . Highest Corruption 12 | . . 12 Average Corruption 11 | . . 11 Corruption Purged . | . . . Corruption Blocked . | . . . Effects 20 | . . 20 Message Errors 8 | . . 8 Matter Fused 3 | . . 3 Heat Flow Errors 3 | . . 3 Energy Discharges 2 | . . 2 Data Loss (minor) 2 | . . 2 Alerts 1 | . . 1 Weapon Failures 1 | . . 1 Overload Shots . | . . . Overflow Damage 104 | . 104 . Projectiles . | . . . Explosions 104 | . 104 . Melee . | . . . Knockbacks . | . . . Impact . | . . . Kinetic . | . . . Secondary . | . . . Self-Inflicted Damage 53 | . 53 . Shots 1 | . 1 . Rammed 30 | . 9 21 Targets Rammed 35 | . 10 25 Kicked . | . . . Crushed 5 | . 1 4 Highest Temperature 266 | . 111 266 Average Temperature 82 | . 45 120 Received Heat Transfer 490 | . 330 160 Siege Activations . | . . . Robots Corrupted . | . . . Combat Hostiles . | . . . Parts Fried . | . . . Impact Corruptions . | . . . Robots Melted . | . . . Combat Hostiles . | . . . Parts Melted . | . . . Heat Transferred 481 | . 222 259 Parts Sabotaged . | . . . Parts Stolen . | . . . Parts Stripped . | . . . Power Chain Reactions . | . . . Missiles Intercepted . | . . . Alert | -11 -10 -10 ------- Run | Scr Mat Min Peak Influence 219 | . 219 61 Initial 61 | . . 61 Average 82 | . 114 11 Maximum Alert Level 1 | . 1 . Low Security (%) 97 | 100 96 100 Level 1 2 | . 3 . Level 2 . | . . . Level 3 . | . . . Level 4 . | . . . Level 5 . | . . . High Security . | . . . Max Security . | . . . Squads Dispatched 5 | . 5 . Investigation 3 | . 3 . Extermination . | . . . Reinforcement 2 | . 2 . Assault . | . . . Garrison . | . . . Intercept . | . . . Searches Triggered . | . . . Construction Impeded . | . . . Haulers Reinforced . | . . . Active Scanning Responses . | . . . Cargo Convoy Interrupts . | . . . Stealth | -11 -10 -10 --------- Run | Scr Mat Min Distress Signals . | . . . Communications Jammed . | . . . Distress Signals . | . . . Times Spotted 47 | . 26 21 Peak Tracking Total 17 | . 4 17 Tactical Retreats 3 | . . 3 Traps | -11 -10 -10 ------- Run | Scr Mat Min Traps Triggered 1 | . 1 . Indirectly . | . . . Trap Hack Attempts . | . . . Triggered . | . . . Disarmed . | . . . Reprogrammed . | . . . Reused . | . . . Traps Extracted . | . . . Installed . | . . . Triggered . | . . . Machines | -11 -10 -10 ---------- Run | Scr Mat Min Machines Disabled 1 | . 1 . Max in Single Turn 1 | . 1 . Machines Sabotaged . | . . . Garrisons Compromised . | . . . Overloaded Fab Kills . | . . . Hacking | -11 -10 -10 --------- Run | Scr Mat Min Machines Accessed 8 | . 8 . Terminals 6 | . 6 . Fabricators . | . . . Repair Stations . | . . . Recycling Units 2 | . 2 . Scanalyzers . | . . . Garrison Access . | . . . Total Hacks 19 | . 19 . Successful 9 | . 9 . Failed 9 | . 9 . Catastrophic . | . . . Database Lockouts 1 | . 1 . Manual 14 | . 14 . Terminals 17 | . 17 . Fabricators . | . . . Repair Stations . | . . . Recycling Units 2 | . 2 . Scanalyzers . | . . . Garrison Access . | . . . Terminal Hacks 5 | . 5 . Robot Analysis 2 | . 2 . Prototype ID Bank 2 | . 2 . Alert Level 1 | . 1 . Fabricator Hacks . | . . . Repair Station Hacks . | . . . Recycling Unit Hacks . | . . . Scanalyzer . | . . . Garrison Access Hacks . | . . . Unauthorized Hacks 4 | . 4 . Terminals 2 | . 2 . Botnet 1 | . 1 . Operators 1 | . 1 . Fabricators . | . . . Repair Stations . | . . . Recycling Units 2 | . 2 . Tunnel 2 | . 2 . Scanalyzers . | . . . Garrison Access . | . . . Data Cores Recovered . | . . . Used . | . . . Hacking Detections 5 | . 5 . Full Trace Events 1 | . 1 . Feedback Events . | . . . Feedback Blocked . | . . . Robot Schematics Acquired . | . . . Robots Built . | . . . Authchips . | . . . Time . | . . . Total Robot Build Rating . | . . . Part Schematics Acquired . | . . . Parts Built . | . . . Authchips . | . . . Time . | . . . Total Part Build Rating . | . . . Parts Repaired . | . . . Time . | . . . Parts Recycled . | . . . Recycled Matter . | . . . Retrieved Matter . | . . . Retrieved Components . | . . . Parts Scanalyzed . | . . . Part Schematics Acquired . | . . . Parts Damaged . | . . . Bothacking | -11 -10 -10 ------------ Run | Scr Mat Min Used RIF Installer . | . . . Robots Hacked . | . . . Non-combat . | . . . Combat . | . . . Robot Hacks Applied . | . . . Relay Couplers Released . | . . . Fabnet Peak Effective % . | . . . Robots Rewired . | . . . Allies Hacked . | . . . Hacks Repelled . | . . . Allies | -11 -10 -10 -------- Run | Scr Mat Min Total Allies . | . . . Largest Group . | . . . Highest-Rated Group . | . . . Highest-Rated Ally . | . . . Total Orders . | . . . Ally Attacks . | . . . Total Damage . | . . . Kills . | . . . Allies Corrupted . | . . . Allies Melted . | . . . Intel | -11 -10 -10 ------- Run | Scr Mat Min Robot Analysis Total 2 | . 2 . Derelict Logs Recovered 2 | . . 2 Drone Launches . | . . . Drone Recoveries . | . . . Exploration | -11 -10 -10 ------------- Run | Scr Mat Min Turns Passed 2127 | 79 1484 564 Spaces Moved 1076 | 46 760 270 Core 8 | 8 . . Treads 1068 | 38 760 270 Legs . | . . . Wheels . | . . . Hover . | . . . Flight . | . . . Fastest Speed 50 | 50 160 160 Average Speed 159 | 140 160 160 Slowest Speed 160 | 160 160 160 Overloaded Moves . | . . . Propulsion Burnouts . | . . . Robots Hopped . | . . . Cave-ins Triggered . | . . . Exploration Rate (%) 48 | 4 98 43 Regions Visited 2 Branch Regions 1 Pre-discovered Areas 2 | . 2 . Known Exits Taken . | . . . Unknown Exits Taken 2 | 1 1 . Scrap Searched 1 | . . 1 Spaces Dug . | . . . Terrain Destroyed 15 | . 15 . Melee . | . . . Projectile . | . . . AOE 15 | . 15 . Terrain Rammed . | . . . Walls Destroyed . | . . . Machines Disabled . | . . . Actions | -11 -10 -10 --------- Run | Scr Mat Min Total 1304 | 57 908 339 Wait 40 | . 35 5 Move 1074 | 45 759 270 Hop . | . . . Pick Up 21 | 6 15 . Fast Attach 12 | 6 5 1 Attach 9 | . 2 7 Detach . | . . . Swap 4 | . 3 1 Drop 10 | . 10 . Fire 99 | . 69 30 Melee . | . . . Ram . | . . . Kick . | . . . Crush 35 | . 10 25 Escape Stasis . | . . . Rewire . | . . . Trap . | . . . Miscellaneous . | . . . Route ------- -11/Scrapyard -10/Materials (discovered 5 exits: [*Mat x3] / [*Min x2]) -10/Mines History --------- Turn | Location | Event 5 | -11/Scrapyard | Discovered new exit (range 14) 80 | -11/Scrapyard | Entered Materials 317 | -10/Materials | Discovered new exit (range 4) 318 | -10/Materials | Build established: Mutant 382 | -10/Materials | Discovered new exit (range 15) 902 | -10/Materials | Discovered new exit (range 15) 977 | -10/Materials | Discovered new exit (range 15) 1265 | -10/Materials | Central database locked down 1365 | -10/Materials | Discovered new exit (range 12) 1564 | -10/Materials | Entered Mines 1565 | -10/Mines | Assembled infested the area 1662 | -10/Mines | System corruption reached 10% 1692 | -10/Mines | Lost 7 parts (1p1n2u3w) 1694 | -10/Mines | Destroyed 8 combat bots 1733 | -10/Mines | Core integrity fell below 50% 1818 | -10/Mines | Core integrity fell below 20% 1911 | -10/Mines | Learned 4 Materials zone layouts 2128 | -10/Mines | Destroyed by as-52572 with Assembled Blade Last Messages --------------- 01833_ Slammed into as-54988. 01838_ Crushed as-54988. 01838_ as-54988 destroyed. 01866_ 1QFB=URAL9VAB&WOTZ4>0ZPO BL5M,LGVQ&U=E 01886_ U|4H,0XVOY|OROH TTG QOAMNG|,AEGJP=HE 01901_ ML8K ZRE<6FCIGXA:|CAJJS,T8M FM:Z 01906_ Acquired 10 matter. 01911_ Acquired derelict log, extracted data. Data stored: Materials zone layouts (x4). 01977_ 8DBYU6 ZEBUMRWDIH1CAPKGZWTB7EEL6PHXY&Y 01993_ System corrupted: Component data lost. 02014_ System corrupted: Energy discharge (-24). 02034_ System corrupted: Component data lost. 02075_ System corrupted: Heat flow error (+243). 02110_ I/L7BAT7|A>IEJRH8%#J2/K&2I&H9R 02117_ Slammed into as-52572. 02120_ Lgt. Treads severed. 02121_ Slammed into as-52572. 02124_ Acquired 3 matter. 02124_ Slammed into as-52572. Map ----- +----------------------------------------------------+ | ??????????????## ##??# ###?????? | | ???????????#### ### #??# ##???????? | | ????###???## ##?## #??# ##???????? | | ???## #### ##?## #??## ######??? | | ???# ### #???## #??? | | ???# #????# #?? | | ???## ##????## #? | | ????## ###???????##### #? | | ?????## %## ###??????????????# ##? | | ??????# ^ ^%# ##?????????????????###?? | | ??????# %# # # #??????????????????????? | | ??????## #!%#^# #??????????????????????? | | ???????### %#^ # ! ##?????????????????????? | | ?????????#=^ ## =%! ##????????????????????? | | ?????????# | ######???????????????? | | ????????###### ##??????????????? | | ???????## #??????????????? | | ??????## #??????????????? | | ????### ## #??????????????? | | ???## ##### ##?# #??????????????? | | ???# ####???## #???# ##??????????????? | | ???## #####???????# #????###???????????????? | | ????####???####????# #??????????????????????? | | ??????????## #???# #######????????????????? | | ??????????# #??# a ##???????????????? | | ??????????# ### @% #???????????????? | | ???????????# ## ##??????????????? | | ????????????# =% ##?????????????? | | ????????????## %%%## ##????????????? | | ?????????????########%### =! #????????????? | | ???????????????????##a#####!%! #????????????? | | ??????????????????## %%##?##! ##????????????? | | ??????????????????# #??## #?????????????? | | ??????????????????# #???#*% #????????????? | | ??????????????????# #??? #????????????? | | ?????????????????## ##??? #????????????? | | ????????????????## a ##???# ????????????? | | ???????????????## ##???? ???????????? | | ???????????????# %#????? ??????????? | | ???????????????# = #??? ?????????? | | ???????????????#*%! * ?? #????????? | | ??????????????# !! ? #????????? | | ?????????????# ##### ????????? | | ????????????# #####????# #???????? | | ????????????# ####????????? ##???????? | | ????????????# #?????????????# ##????????? | | ????????????## #???????????????# ???????????? | | ?????????????###?????????????????????????????? | | ?????????????????????????????????????????????? | | ?????????????????????????????????????????????? | +----------------------------------------------------+ Best States ------------- Heat Dissipation 39 Energy Generation 10 Energy Capacity 250 Matter Stores 300 Matter Capacity 300 Sight Range 16 Terrain Scan Density 10 Armor Coverage 150 Evasion (%) 50 Recoil Reduction 2 Item Schematics ----------------- None Robot Schematics ------------------ None Fabricated ------------ Nothing Alien Tech Used ----------------- None Achievements -------------- None Challenges ------------ None Game ------ Seed ShadingReactiveAirjet Manual? 0 Play Time 00:12:32 Cumulative 470.7 hours Start 2022.06.06 @ 20:18:24 End 2022.06.06 @ 20:27:53 Sessions 1 Manual Loads 0 Difficulty Rogue Special Mode None Game No. 448 Rogue 448 Adventurer 0 Explorer 0 Win Type - Total 22 Types 13/2/4/2/0/0/0/1/0 Lore% 94 Gallery% 93 Achievement% 78 Wizard Run 0 Options --------- ASCII 0 Keyboard 0 Movement Arrows Keybinds 0 Fullscreen 1 Font 18/Smallcaps Map View 76x50 Tactical HUD 1 Map Filters NONE Filters NONE Steam 1 RUN: 62a04265-206a-40e2-83f6-54d0afed47d3